bitfinex-derivatives/quotes_BTCF0:USTF0_20250912
["timestamp","ask_amount","ask_price","bid_price","bid_amount"]
[1757679940067,1.16266,115020.0,115010.0,0.2851062]
[1757679940267,0.36302,115020.0,115010.0,0.1601481]
[1757679941270,0.002,115020.0,115010.0,0.1601481]
[1757679941969,0.002,115020.0,115010.0,0.1688381]
[1757679942276,0.00222,115020.0,115010.0,0.1688381]
[1757679942570,0.80162,115020.0,115010.0,0.77900992]
[1757679945274,0.002,115020.0,115010.0,0.77900992]
[1757679948284,0.00222,115020.0,115010.0,0.77900992]
[1757679948774,0.002,115020.0,115010.0,0.77900992]
[1757679948974,0.002,115020.0,115010.0,0.40468]
[1757679949178,0.002,115020.0,115010.0,0.77900992]
[1757679950982,0.00222,115020.0,115010.0,0.23104496]
[1757679951677,0.00222,115020.0,115010.0,0.04388]
[1757679951878,0.00222,115020.0,115010.0,0.23104496]
[1757679955184,0.02816413,115020.0,115010.0,0.04388]
[1757679955386,0.02816413,115020.0,115010.0,0.23104496]
[1757679955880,0.00222,115020.0,115010.0,0.23104496]
[1757679956185,0.0281835,115020.0,115010.0,0.23104496]
[1757679960085,0.78368061,115020.0,115010.0,0.04388]
[1757679960579,1.03368061,115020.0,115010.0,0.04388]
[1757679960787,1.0649452,115020.0,115010.0,0.02153]
[1757679960990,1.0649452,115020.0,115010.0,0.00969]
[1757679962279,1.0675452,115020.0,115010.0,0.00969]
[1757679962887,1.0675452,115020.0,115010.0,0.04461]
[1757679963087,1.8677852,115020.0,115010.0,0.23177496]
[1757679963587,1.49345528,115020.0,115010.0,0.23177496]
[1757679963787,1.83652061,115020.0,115010.0,0.04461]
[1757679968290,1.83652061,115020.0,115010.0,0.23177496]
[1757679971697,1.83652061,115020.0,115010.0,0.04461]
[1757679971896,1.83652061,115020.0,115010.0,0.23177496]
[1757679974602,1.46219069,115020.0,115010.0,0.23177496]
[1757679974898,1.83652061,115020.0,115010.0,0.23177496]
[1757679975402,0.84911565,115020.0,115010.0,0.23177496]
[1757679975805,1.64763565,115020.0,115010.0,0.23177496]
[1757679980408,1.83480061,115020.0,115010.0,0.23177496]
[1757679982407,1.80883711,115020.0,115010.0,0.23177496]
[1757679983905,1.01031711,115020.0,115010.0,0.23177496]
[1757679984105,1.25983215,115020.0,115010.0,0.23177496]
[1757679984711,1.43346719,115020.0,115010.0,0.23177496]
[1757679985009,1.64663223,115020.0,115010.0,0.23177496]
[1757679985809,0.84915223,115020.0,115010.0,0.23177496]
[1757679986017,1.28579223,115020.0,115010.0,0.23177496]
[1757679986516,0.48835223,115020.0,115010.0,0.23177496]
[1757679986716,1.28559223,115020.0,115010.0,0.23177496]
[1757679987114,1.64639223,115020.0,115010.0,0.23177496]
[1757679988116,1.83355719,115020.0,115010.0,0.23177496]
[1757679988623,1.47263719,115020.0,115010.0,0.23177496]
[1757679988811,1.28539223,115020.0,115010.0,0.23177496]
[1757679989218,1.64619223,115020.0,115010.0,0.23177496]
[1757679991830,0.48835223,115020.0,115010.0,0.23177496]
[1757679992024,1.28519223,115020.0,115010.0,0.23177496]
[1757679992922,0.48835223,115020.0,115010.0,0.23177496]
[1757679993128,1.28495223,115020.0,115010.0,0.23177496]
[1757679993927,1.09778727,115020.0,115010.0,0.23177496]
[1757679994130,1.28495223,115020.0,115010.0,0.23177496]
[1757679994827,1.28487223,115020.0,115010.0,0.23177496]
[1757679995124,1.64567223,115020.0,115010.0,0.23177496]
[1757679999437,0.41198727,115020.0,115010.0,0.23177496]
[1757679999735,1.39503223,115020.0,115010.0,0.23177496]
[1757680000331,0.41198727,115020.0,115010.0,0.23177496]
[1757680000534,0.02518719,115020.0,115010.0,0.66893992]
[1757680000726,0.02496719,115020.0,115010.0,0.66893992]
[1757680001330,0.02518719,115020.0,115010.0,0.66893992]
[1757680001534,0.00482,115020.0,115010.0,0.66893992]
[1757680001831,0.0046,115020.0,115010.0,0.48177496]
[1757680002031,0.00482,115020.0,115010.0,0.48177496]
[1757680002230,0.00482,115020.0,115010.0,0.29461]
[1757680002431,0.00482,115020.0,115010.0,0.48177496]
[1757680003334,0.0046,115020.0,115010.0,0.66893992]
[1757680003741,0.0046,115020.0,115010.0,0.48177496]
[1757680004239,0.00482,115020.0,115010.0,0.48177496]
[1757680004439,0.00482,115020.0,115010.0,0.41938965]
[1757680006241,0.00482,115020.0,115010.0,0.29461]
[1757680006434,0.00482,115020.0,115010.0,0.41938965]
[1757680009046,0.00482,115020.0,115010.0,0.78018965]
[1757680009245,0.0046,115020.0,115010.0,0.78018965]
[1757680011745,0.00482,115020.0,115010.0,0.78018965]
[1757680012046,0.0046,115020.0,115010.0,0.78018965]
[1757680015446,0.0046,115020.0,115010.0,0.53018965]
[1757680016152,0.0046,115020.0,115010.0,0.6549693]
[1757680017454,0.0046,115020.0,115010.0,0.66389362]
[1757680020761,0.0046,115020.0,115010.0,0.53911397]
[1757680020952,0.0046,115020.0,115010.0,0.53018965]
[1757680021553,0.0046,115020.0,115010.0,0.54760837]
[1757680027368,0.0046,115020.0,115010.0,0.18680837]
[1757680027571,0.0046,115020.0,115010.0,0.54760837]
[1757680028172,0.00482,115020.0,115010.0,0.54760837]
[1757680028374,0.00482,115020.0,115010.0,0.18680837]
[1757680031579,0.0046,115020.0,115010.0,0.18680837]
[1757680032374,0.00482,115020.0,115010.0,0.18680837]
[1757680041079,0.0046,115020.0,115010.0,0.18680837]
[1757680042585,0.0046,115020.0,115010.0,0.54760837]
[1757680051990,0.0046,115020.0,115010.0,0.42282872]
[1757680052191,0.0046,115020.0,115010.0,0.54760837]
[1757680057102,0.0046,115020.0,115010.0,0.53891837]
[1757680057294,0.00482,115020.0,115010.0,0.53891837]
[1757680057604,0.0046,115020.0,115010.0,0.53891837]
[1757680058104,0.00482,115020.0,115010.0,0.53891837]
[1757680058605,0.0046,115020.0,115010.0,0.54760837]
[1757680059595,0.05477965,115040.0,115010.0,0.79760837]
[1757680059795,0.00089537,115080.0,115070.0,0.0985142]
[1757680060091,0.0138,115100.0,115090.0,0.0868691]
[1757680060398,0.0138,115110.0,115090.0,0.89149106]
[1757680060598,0.04508913,115100.0,115090.0,0.51715211]
[1757680060795,0.04508913,115100.0,115090.0,1.12751141]
[1757680060995,0.04508913,115100.0,115090.0,1.26538981]
[1757680061514,0.03490473,115100.0,115090.0,1.14061016]
[1757680062104,0.03490473,115100.0,115090.0,1.26538981]
[1757680062397,0.03490473,115100.0,115090.0,1.26238981]
[1757680063096,0.03590473,115100.0,115090.0,1.26438981]
[1757680063501,0.03590473,115100.0,115090.0,1.13961016]
[1757680064300,0.10850785,115100.0,115090.0,1.05574106]
[1757680064603,0.12230785,115100.0,115090.0,1.17996742]
[1757680066399,0.12230785,115100.0,115090.0,1.26683652]
[1757680066793,0.12230785,115100.0,115090.0,1.45372935]
[1757680067004,0.10850785,115100.0,115090.0,1.45372935]
[1757680067604,0.10850785,115100.0,115090.0,1.26683652]
[1757680068105,0.10850785,115100.0,115090.0,1.45372935]
[1757680068804,0.10850785,115100.0,115090.0,1.26683652]
[1757680069102,0.10850785,115100.0,115090.0,1.45372935]
[1757680070503,0.0138,115110.0,115090.0,1.45372935]
[1757680070805,0.0138,115110.0,115100.0,0.92147849]
[1757680071001,0.100654,115110.0,115100.0,0.93457724]
[1757680071202,0.0138,115120.0,115100.0,1.02143874]
[1757680071404,0.1006435,115130.0,115110.0,1.00833249]
[1757680071603,0.1006435,115130.0,115120.0,0.54769283]
[1757680071806,0.1006435,115130.0,115120.0,0.93357724]
[1757680072200,0.1006435,115130.0,115120.0,0.93257724]
[1757680072602,0.1026435,115130.0,115120.0,0.93257724]
[1757680072908,0.1046435,115130.0,115120.0,0.93357724]
[1757680073596,0.1046435,115130.0,115120.0,0.9424371]
[1757680073799,0.09038815,115130.0,115120.0,0.9424371]
[1757680074400,0.0138,115150.0,115120.0,1.0292836]
[1757680074600,0.0138,115150.0,115140.0,1.28227849]
[1757680074806,0.0138,115150.0,115140.0,1.29537724]
[1757680075204,0.0138,115150.0,115140.0,1.10848441]
[1757680075410,0.0138,115150.0,115140.0,1.29537724]
[1757680075808,0.0168,115150.0,115140.0,1.29537724]
[1757680076003,0.006,115150.0,115140.0,1.28327849]
[1757680076211,0.006,115150.0,115140.0,1.37010989]
[1757680077615,0.005,115150.0,115140.0,1.37010989]
[1757680078909,0.003,115150.0,115140.0,1.37778989]
[1757680079311,0.01597,115150.0,115140.0,1.37778989]
[1757680079908,0.01597,115150.0,115140.0,1.29095849]
[1757680080512,0.003,115150.0,115140.0,1.29095849]
[1757680080704,0.003,115150.0,115140.0,1.54095849]
[1757680081517,0.0138,115160.0,115140.0,1.54095849]
[1757680081712,0.0138,115160.0,115150.0,0.54769283]
[1757680082611,0.0138,115160.0,115150.0,0.73458566]
[1757680082818,0.0158,115160.0,115150.0,0.3608]
[1757680083011,0.0158,115160.0,115150.0,0.73458566]
[1757680083312,0.03988,115160.0,115150.0,0.73458566]
[1757680084207,0.0178,115160.0,115150.0,0.73458566]
[1757680084407,0.03788,115160.0,115150.0,0.73458566]
[1757680084916,0.0158,115160.0,115150.0,0.73458566]
[1757680086311,0.01297,115170.0,115150.0,0.92147849]
[1757680086521,0.01297,115170.0,115160.0,0.54769283]
[1757680087312,0.01297,115170.0,115160.0,0.73458566]
[1757680087912,0.01297,115170.0,115160.0,0.92147849]
[1757680088319,0.01297,115170.0,115160.0,0.93457559]
[1757680088512,0.01297,115170.0,115160.0,0.74768276]
[1757680088713,0.03705,115170.0,115160.0,0.74768276]
[1757680089820,0.01497,115170.0,115160.0,0.74768276]
[1757680092227,0.03705,115170.0,115160.0,0.74768276]
[1757680092414,0.03605,115170.0,115160.0,0.74768276]
[1757680093625,0.0258702,115170.0,115160.0,0.74768276]
[1757680093918,0.03109017,115210.0,115180.0,0.3608]
[1757680094109,0.22194283,115210.0,115200.0,0.7216]
[1757680094311,0.22194283,115210.0,115200.0,0.73445226]
[1757680094620,0.21002062,115210.0,115200.0,0.73445226]
[1757680094821,0.03505,115210.0,115200.0,0.73445226]
[1757680095216,0.03505,115210.0,115200.0,0.7216]
[1757680096018,0.03505,115210.0,115200.0,0.89757062]
[1757680098623,0.0026,115230.0,115210.0,0.4475756]
[1757680098822,0.0026,115230.0,115220.0,0.71074124]
[1757680099023,0.0026,115230.0,115220.0,0.3608]
[1757680099223,0.03765,115230.0,115220.0,0.3608]
[1757680099418,0.03765,115230.0,115220.0,0.53577062]
[1757680099626,0.46262062,115230.0,115220.0,0.3608]
[1757680099920,0.28765,115230.0,115220.0,0.3608]
[1757680100323,0.28865,115230.0,115220.0,0.53577062]
[1757680101327,0.28865,115230.0,115220.0,0.53577062]
[1757680102122,0.0036,115230.0,115220.0,0.96074124]
[1757680102713,0.0036,115230.0,115220.0,1.04751314]
[1757680102919,0.0036,115230.0,115220.0,0.96074124]
[1757680104128,0.0036,115230.0,115220.0,0.53577062]
[1757680104326,0.03512,115230.0,115220.0,0.53577062]
[1757680104935,0.03512,115230.0,115220.0,0.3608]
[1757680105233,0.03512,115230.0,115220.0,0.53577062]
[1757680106931,0.01372,115230.0,115220.0,0.53577062]
[1757680108921,0.03512,115230.0,115220.0,0.3608]
[1757680109126,0.46009062,115230.0,115220.0,0.3608]
[1757680109631,0.65649614,115230.0,115210.0,0.3608]
[1757680109834,0.03412,115210.0,115200.0,0.3608]
[1757680110025,0.20909062,115210.0,115200.0,0.3608]
[1757680110332,0.01272,115190.0,115180.0,0.3608]
[1757680110521,0.20909062,115190.0,115180.0,0.3608]
[1757680110726,0.05568883,115190.0,115180.0,0.3608]
[1757680110921,0.05568883,115190.0,115180.0,0.53577062]
[1757680111534,0.03428883,115190.0,115180.0,0.53577062]
[1757680111729,0.01272,115190.0,115180.0,0.53577062]
[1757680112130,0.01986748,115200.0,115180.0,0.53577062]
[1757680112324,0.06538344,115220.0,115190.0,0.96074124]
[1757680112627,0.03429327,115220.0,115210.0,0.89657062]
[1757680112828,0.01272,115220.0,115210.0,0.89657062]
[1757680114630,0.01272,115230.0,115210.0,0.89657062]
[1757680114835,0.01532,115240.0,115220.0,0.71074124]
[1757680115022,0.01532,115240.0,115230.0,0.53577062]
[1757680115423,0.03672,115240.0,115230.0,0.3608]
[1757680115629,0.03672,115240.0,115230.0,0.53577062]
[1757680116134,0.03972,115240.0,115230.0,0.53577062]
[1757680116635,0.03672,115240.0,115230.0,0.53577062]
[1757680116935,0.03972,115240.0,115230.0,0.53577062]
[1757680117329,0.01832,115240.0,115230.0,0.71074124]
[1757680117731,0.01572,115240.0,115230.0,0.71074124]
[1757680118835,0.01572,115240.0,115230.0,0.53577062]
[1757680119239,0.01572,115240.0,115230.0,0.71074124]
[1757680120036,0.01572,115240.0,115230.0,0.53577062]
[1757680120246,0.03712,115240.0,115230.0,0.53577062]
[1757680120542,0.01572,115240.0,115230.0,0.96074124]
[1757680122135,0.003,115240.0,115230.0,0.96074124]
[1757680122336,0.01572,115240.0,115230.0,0.6108]
[1757680122537,0.01572,115240.0,115230.0,0.96074124]
[1757680123345,0.01272,115240.0,115230.0,0.96074124]
[1757680123543,0.01372,115240.0,115230.0,0.96074124]
[1757680124044,0.01372,115240.0,115230.0,0.3608]
[1757680124045,0.03512,115240.0,115230.0,0.3608]
[1757680124245,0.03512,115240.0,115230.0,0.53577062]
[1757680124438,0.03512,115240.0,115230.0,0.53443925]
[1757680124638,0.28512,115240.0,115230.0,0.3608]
[1757680124838,0.30713547,115240.0,115230.0,0.3608]
[1757680125547,0.48077472,115240.0,115230.0,0.3608]
[1757680125742,0.30713547,115240.0,115230.0,0.3608]
[1757680131945,0.03573547,115240.0,115230.0,0.78443925]
[1757680132147,0.01372,115240.0,115230.0,0.78443925]
[1757680132841,0.001,115240.0,115230.0,0.78443925]
[1757680133856,0.02298,115260.0,115230.0,0.78443925]
[1757680134055,0.057803,115260.0,115250.0,0.7216]
[1757680134752,0.617963,115260.0,115250.0,0.7216]
[1757680134956,0.057803,115260.0,115250.0,0.7216]
[1757680135355,0.477323,115260.0,115250.0,0.7216]
[1757680135659,0.059803,115260.0,115250.0,0.7216]
[1757680135957,0.643803,115260.0,115250.0,0.7216]
[1757680136159,0.876843,115260.0,115250.0,0.73027]
[1757680136462,0.059803,115260.0,115250.0,0.73027]
[1757680136661,0.876803,115260.0,115250.0,0.73027]
[1757680137964,0.059803,115260.0,115250.0,0.73027]
[1757680138158,0.876643,115260.0,115250.0,0.73027]
[1757680140052,1.05028225,115260.0,115250.0,0.72606272]
[1757680140256,1.30028225,115260.0,115250.0,0.72606272]
[1757680140959,1.30028225,115260.0,115250.0,0.00867]
[1757680141151,0.0128,115250.0,115240.0,0.3608]
[1757680141358,0.0128,115230.0,115220.0,0.3608]
[1757680141560,0.23144225,115230.0,115220.0,0.3608]
[1757680141864,0.50184703,115230.0,115220.0,0.3608]
[1757680142169,0.50219718,115230.0,115220.0,0.3608]
[1757680142661,0.89451793,115230.0,115220.0,0.3638]
[1757680143264,0.963861,115230.0,115220.0,0.3638]
[1757680143463,1.38750025,115230.0,115220.0,0.3638]
[1757680144066,1.41859042,115230.0,115220.0,0.3638]
[1757680145167,1.38750025,115230.0,115220.0,0.3638]
[1757680146770,1.38638025,115230.0,115220.0,0.3638]
[1757680147358,0.57154025,115230.0,115220.0,0.3638]
[1757680147668,1.38614025,115230.0,115220.0,0.3638]
[1757680148661,1.38614025,115230.0,115220.0,0.003]
[1757680148862,0.03578,115220.0,115210.0,0.00867]
[1757680149063,0.2317924,115220.0,115210.0,0.00867]
[1757680149968,0.2317924,115220.0,115210.0,0.36947]
[1757680151467,0.2317924,115220.0,115210.0,0.37247]
[1757680152272,0.20941925,115220.0,115210.0,0.37247]
[1757680152866,0.23177376,115220.0,115210.0,0.37247]
[1757680153169,0.20941925,115220.0,115210.0,0.37247]
[1757680154156,1.02289925,115220.0,115210.0,0.37684]
[1757680154967,1.02245925,115220.0,115210.0,0.37684]
[1757680155465,1.02221925,115220.0,115210.0,0.37684]
[1757680155669,1.02221925,115220.0,115210.0,0.37247]
[1757680156864,0.84858,115220.0,115210.0,0.37247]
[1757680157072,1.02221925,115220.0,115210.0,0.37247]
[1757680158372,0.03578,115220.0,115210.0,0.37247]
[1757680158563,0.84798,115220.0,115210.0,0.37684]
[1757680158765,1.02161925,115220.0,115210.0,0.37684]
[1757680159074,1.02161925,115220.0,115210.0,0.37247]
[1757680163679,1.02161925,115220.0,115210.0,0.01167]
[1757680163976,1.02161925,115220.0,115210.0,0.37247]
[1757680164873,1.02161925,115220.0,115210.0,0.01167]
[1757680165074,1.02161925,115220.0,115210.0,0.37247]
[1757680166573,0.20941925,115220.0,115210.0,0.37247]
[1757680166773,1.01941925,115220.0,115210.0,0.36817]
[1757680170183,0.20941925,115220.0,115210.0,0.36817]
[1757680170481,1.01857925,115220.0,115210.0,0.36817]
[1757680171279,1.03915935,115220.0,115210.0,0.36817]
[1757680171483,0.8652401,115220.0,115210.0,0.36817]
[1757680171784,1.03887935,115220.0,115210.0,0.36817]
[1757680174085,0.22999935,115220.0,115210.0,0.36817]
[1757680174287,1.03847935,115220.0,115210.0,0.36817]
[1757680175089,1.03847935,115220.0,115210.0,0.3638]
[1757680177691,1.03847935,115220.0,115210.0,0.36817]
[1757680178187,1.03847935,115220.0,115210.0,0.3638]
[1757680178188,0.0563601,115220.0,115210.0,0.3638]
[1757680178390,0.22999935,115220.0,115210.0,0.36817]
[1757680178589,1.03743935,115220.0,115210.0,0.36817]
[1757680182089,1.03743935,115220.0,115210.0,0.37684]
[1757680182586,1.03683935,115220.0,115210.0,0.37684]
[1757680184391,1.03813391,115220.0,115210.0,0.37684]
[1757680185590,0.8632001,115220.0,115210.0,0.37684]
[1757680185993,1.03813391,115220.0,115210.0,0.37684]
[1757680186193,0.23129391,115220.0,115210.0,0.37684]
[1757680186385,1.03709391,115220.0,115210.0,0.37684]
[1757680188799,1.03709391,115220.0,115210.0,0.37247]
[1757680189492,0.8621601,115220.0,115210.0,0.37684]
[1757680189693,1.03709391,115220.0,115210.0,0.37684]
[1757680190398,0.8621601,115220.0,115210.0,0.37684]
[1757680190698,1.03709391,115220.0,115210.0,0.37684]
[1757680192401,1.23535744,115220.0,115210.0,0.37684]
[1757680193097,1.23535744,115220.0,115210.0,0.01604]
[1757680193302,1.23535744,115220.0,115210.0,0.01167]
[1757680193904,1.23535744,115220.0,115210.0,0.01604]
[1757680195596,0.42955744,115220.0,115210.0,0.01604]
[1757680195801,1.23355744,115220.0,115210.0,0.01167]
[1757680196410,0.42955744,115220.0,115210.0,0.01604]
[1757680196597,1.23339744,115220.0,115210.0,0.01604]
[1757680197997,1.23323744,115220.0,115210.0,0.01604]
[1757680198604,0.8600401,115220.0,115210.0,0.01604]
[1757680198804,1.23323744,115220.0,115210.0,0.37684]
[1757680199705,1.23311744,115220.0,115210.0,0.37684]
[1757680200307,1.04619877,115220.0,115210.0,0.56343867]
[1757680201202,0.0563601,115220.0,115210.0,1.00003734]
[1757680201408,0.83874,115220.0,115210.0,0.81343867]
[1757680201606,0.03578,115220.0,115210.0,0.81343867]
[1757680201903,0.83874,115220.0,115210.0,0.81343867]
[1757680202294,0.03578,115220.0,115210.0,0.81343867]
[1757680202500,0.8387,115220.0,115210.0,1.00003734]
[1757680202807,0.8387,115220.0,115210.0,0.89328722]
[1757680203007,0.81572,115220.0,115210.0,0.83093588]
[1757680203211,0.81572,115220.0,115210.0,0.89328601]
[1757680203405,0.81572,115220.0,115210.0,1.07988468]
[1757680203601,0.80276,115220.0,115210.0,1.07988468]
[1757680203803,0.80276,115220.0,115210.0,0.89328601]
[1757680204110,0.27134174,115230.0,115210.0,1.07988468]
[1757680204311,0.80276,115220.0,115210.0,0.45668734]
[1757680204505,0.80276,115220.0,115210.0,0.75513721]
[1757680204804,0.0154,115230.0,115210.0,1.00513721]
[1757680205014,0.0154,115230.0,115220.0,0.42747843]
[1757680205201,0.81792,115230.0,115220.0,0.44301811]
[1757680205402,0.0026,115230.0,115220.0,1.06621545]
[1757680206011,0.81528,115240.0,115220.0,1.06621545]
[1757680206205,0.83718,115240.0,115230.0,0.61401669]
[1757680206607,0.83718,115240.0,115230.0,0.42741802]
[1757680206812,0.83718,115240.0,115230.0,0.61401669]
[1757680207208,0.83718,115240.0,115230.0,0.55176867]
[1757680207404,0.83718,115240.0,115230.0,0.55276867]
[1757680207604,0.0347,115240.0,115230.0,0.55276867]
[1757680207805,0.8369,115240.0,115230.0,0.55276867]
[1757680209912,1.02609867,115240.0,115230.0,0.55276867]
[1757680210409,1.21269734,115240.0,115230.0,0.36617]
[1757680210610,1.46269734,115240.0,115230.0,0.3618]
[1757680210816,1.48283843,115240.0,115230.0,0.3618]
[1757680212808,1.48283843,115240.0,115230.0,0.001]
[1757680212809,2.05102428,115240.0,115230.0,0.001]
[1757680213011,1.68954428,115240.0,115230.0,0.001]
[1757680213309,0.70142561,115240.0,115230.0,0.001]
[1757680213505,1.50286561,115240.0,115230.0,0.001]
[1757680213705,1.10888109,115240.0,115230.0,0.001]
[1757680213901,1.50286539,115240.0,115230.0,0.001]
[1757680218023,1.50218539,115240.0,115230.0,0.001]
[1757680220123,1.86298539,115240.0,115230.0,0.001]
[1757680220326,2.04958406,115240.0,115230.0,0.001]
[1757680223321,2.02944297,115240.0,115230.0,0.001]
[1757680223524,2.04975083,115240.0,115230.0,0.001]
[1757680224119,1.79975083,115240.0,115220.0,0.00867]
[1757680224325,0.40914734,115230.0,115220.0,0.00867]
[1757680225624,0.47931633,115230.0,115220.0,0.00867]
[1757680225824,0.47931633,115230.0,115220.0,0.00967]
[1757680229027,1.04756561,115230.0,115220.0,0.00967]
[1757680229533,0.03595,115210.0,115200.0,0.3608]
[1757680229830,1.22988899,115210.0,115200.0,0.3608]
[1757680230025,0.03595,115200.0,115190.0,0.38189]
[1757680230232,0.40914734,115200.0,115190.0,0.02109]
[1757680230429,0.03595,115190.0,115180.0,0.40441379]
[1757680230732,1.02298867,115190.0,115180.0,0.40441379]
[1757680231330,1.20958734,115190.0,115180.0,0.40441379]
[1757680231532,1.20958734,115190.0,115180.0,0.63332379]
[1757680232827,1.20958734,115190.0,115180.0,0.38332379]
[1757680233028,1.21058734,115190.0,115180.0,0.38832379]
[1757680233232,1.21058734,115190.0,115180.0,0.02752379]
[1757680233533,1.27938522,115190.0,115180.0,0.01011]
[1757680233734,1.28805383,115190.0,115180.0,0.01011]
[1757680233932,1.28805383,115190.0,115180.0,0.01311]
[1757680234432,1.64885383,115190.0,115180.0,0.01311]
[1757680235222,1.65145383,115190.0,115180.0,0.01311]
[1757680236429,0.87181543,115190.0,115180.0,0.01311]
[1757680236733,1.67233543,115190.0,115180.0,0.01311]
[1757680240232,2.1089341,115190.0,115180.0,0.01311]
[1757680240636,0.03595,115180.0,115160.0,0.3608]
[1757680240932,1.02310867,115170.0,115160.0,0.3608]
[1757680241627,1.20970734,115170.0,115160.0,0.3608]
[1757680241833,1.20970734,115170.0,115160.0,0.3648]
[1757680242234,1.21070734,115170.0,115160.0,0.3708]
[1757680242640,1.21070734,115170.0,115160.0,0.39189]
[1757680243234,0.83751,115170.0,115160.0,0.39189]
[1757680243440,1.21070734,115170.0,115160.0,0.39189]
[1757680243740,1.21070734,115170.0,115160.0,0.38789]
[1757680243942,1.21070734,115170.0,115160.0,0.39189]
[1757680244933,1.23102329,115170.0,115160.0,0.3708]
[1757680246440,0.98234418,115170.0,115160.0,0.3708]
[1757680247033,0.18178418,115170.0,115160.0,0.3708]
[1757680247240,0.98238418,115170.0,115160.0,0.3708]
[1757680247636,0.85786595,115170.0,115160.0,0.3708]
[1757680247838,0.98238418,115170.0,115160.0,0.3708]
[1757680248441,0.85786595,115170.0,115160.0,0.3708]
[1757680248642,0.98238418,115170.0,115160.0,0.3708]
[1757680249039,0.18178418,115170.0,115160.0,0.3708]
[1757680249239,0.98238418,115170.0,115160.0,0.39189]
[1757680249742,0.85786595,115170.0,115160.0,0.39189]
[1757680249947,0.98238418,115170.0,115160.0,0.39189]
[1757680251134,0.85786595,115170.0,115160.0,0.39189]
[1757680251340,0.96206823,115170.0,115160.0,0.39189]
[1757680252043,0.16146823,115170.0,115160.0,0.39189]
[1757680252249,0.83755,115170.0,115160.0,0.76640823]
[1757680252447,0.96206823,115170.0,115160.0,0.76640823]
[1757680252944,0.83755,115170.0,115160.0,0.76640823]
[1757680253150,0.96206823,115170.0,115160.0,0.64189]
[1757680253350,0.96466823,115170.0,115160.0,0.64189]
[1757680253951,0.84015,115170.0,115160.0,0.64189]
[1757680254149,0.96466823,115170.0,115160.0,0.64189]
[1757680254641,0.84015,115170.0,115160.0,0.64189]
[1757680255039,0.96466823,115170.0,115160.0,0.64189]
[1757680255448,0.84015,115170.0,115160.0,0.64189]
[1757680255651,0.96466823,115170.0,115160.0,0.64189]
[1757680255949,0.84015,115170.0,115160.0,0.64189]
[1757680256150,0.96466823,115170.0,115160.0,0.64189]
[1757680256556,0.84015,115170.0,115160.0,0.64189]
[1757680256945,0.96466823,115170.0,115160.0,0.64189]
[1757680257251,0.96462823,115170.0,115160.0,0.64189]
[1757680257549,0.84011,115170.0,115160.0,0.64189]
[1757680257749,0.03955,115170.0,115160.0,0.64189]
[1757680257950,0.96462823,115170.0,115160.0,0.64189]
[1757680258955,0.84011,115170.0,115160.0,0.64189]
[1757680259256,0.98565862,115170.0,115160.0,0.64189]
[1757680259443,0.86114039,115170.0,115160.0,0.64189]
[1757680259649,0.98565862,115170.0,115160.0,0.64189]
[1757680259853,0.18509862,115170.0,115160.0,0.64189]
[1757680260055,0.98565862,115170.0,115160.0,0.64189]
[1757680260256,0.86114039,115170.0,115160.0,0.64189]
[1757680260556,0.98565862,115170.0,115160.0,0.64189]
[1757680260951,0.86114039,115170.0,115160.0,0.64189]
[1757680261152,0.98565862,115170.0,115160.0,0.64189]
[1757680261452,0.86114039,115170.0,115160.0,0.64189]
[1757680261653,0.98565862,115170.0,115160.0,0.64189]
[1757680261855,0.98565862,115170.0,115160.0,0.64089]
[1757680262853,0.98565862,115170.0,115160.0,0.63989]
[1757680262854,0.98465862,115170.0,115160.0,0.63989]
[1757680263052,0.98565862,115170.0,115160.0,0.63989]
[1757680265056,0.98565862,115170.0,115160.0,0.6188]
[1757680267157,1.11017685,115170.0,115160.0,0.3688]
[1757680267357,1.36017685,115170.0,115160.0,0.3688]
[1757680268659,1.39126702,115170.0,115160.0,0.3688]
[1757680269565,0.59070702,115170.0,115160.0,0.3688]
[1757680270065,1.39114702,115170.0,115160.0,0.3688]
[1757680270375,0.59070702,115170.0,115160.0,0.3688]
[1757680270572,1.39114702,115170.0,115160.0,0.3688]
[1757680270761,1.39114702,115170.0,115160.0,0.008]
[1757680271165,0.59070702,115170.0,115160.0,0.008]
[1757680271368,1.39110702,115170.0,115160.0,0.008]
[1757680271568,1.39114702,115170.0,115160.0,0.008]
[1757680272463,1.36005685,115170.0,115160.0,0.008]
[1757680273960,1.13004877,115170.0,115160.0,0.008]
[1757680274673,1.16113894,115170.0,115160.0,0.008]
[1757680276069,1.16109894,115170.0,115160.0,0.008]
[1757680276465,1.12996877,115170.0,115160.0,0.008]
[1757680277173,0.88093231,115170.0,115160.0,0.008]
[1757680277471,1.12996877,115170.0,115160.0,0.008]
[1757680281971,1.49076877,115170.0,115160.0,0.008]
[1757680282176,0.03593,115150.0,115140.0,0.3608]
[1757680282376,1.10649141,115150.0,115140.0,0.3608]
[1757680282577,0.98197318,115150.0,115140.0,0.3608]
[1757680283676,0.98197318,115150.0,115140.0,0.38386]
[1757680283881,0.98297318,115150.0,115140.0,0.39186]
[1757680284085,0.96176823,115150.0,115140.0,0.39186]
[1757680284774,1.02957592,115150.0,115140.0,0.39186]
[1757680284977,1.02957592,115150.0,115140.0,0.3688]
[1757680285688,1.15669415,115150.0,115140.0,0.3688]
[1757680286781,1.03217592,115150.0,115140.0,0.39186]
[1757680287283,0.23185592,115150.0,115140.0,0.39186]
[1757680287485,1.03213592,115150.0,115140.0,0.39186]
[1757680288278,0.23185592,115150.0,115140.0,0.39186]
[1757680288684,1.03213592,115150.0,115140.0,0.39186]
[1757680293389,0.10733769,115150.0,115140.0,0.51637823]
[1757680293590,0.90757769,115150.0,115140.0,0.76637823]
[1757680293783,1.03209592,115150.0,115140.0,0.76637823]
[1757680296791,1.03209592,115150.0,115140.0,0.64186]
[1757680297289,1.03209592,115150.0,115140.0,0.70410802]
[1757680297784,1.03209592,115150.0,115140.0,0.68104802]
[1757680297980,1.15661415,115150.0,115140.0,0.3688]
[1757680298188,1.42790748,115150.0,115140.0,0.008]
[1757680299093,1.30338925,115150.0,115140.0,0.008]
[1757680299290,1.05338925,115150.0,115140.0,0.008]
[1757680300593,1.03209592,115150.0,115140.0,0.008]
[1757680301382,1.0533858,115150.0,115140.0,0.008]
[1757680302281,1.17790403,115150.0,115140.0,0.008]